fUSD/lending_fUSD_20241104
["ID","MTS","AMOUNT","RATE_DAILY","PERIOD"]
[341239995,1730712632160,-2157.79441304,0.0001892,2]
[341239996,1730712632172,-9159.67428148,0.0001892,2]
[341239997,1730712632197,-1265.76955129,0.0001892,2]
[341240004,1730712638001,-537.13002854,0.0001892,2]
[341240005,1730712638012,-661.09885824,0.0001892,2]
[341240006,1730712638063,-23309.88975161,0.0001892,2]
[341240007,1730712638122,-435.097,0.0001892,2]
[341240008,1730712638133,-1731.91224755,0.0001892,2]
[341240009,1730712638347,-310.24010705,0.0001892,2]
[341240021,1730712643169,-5758.79233974,0.0001892,2]
[341240074,1730712646001,-113.03834537,0.0001892,2]
[341240075,1730712646014,-500.0,0.00019,2]
[341240076,1730712646027,-5987.77321854,0.0002,2]
[341240077,1730712646225,-1867.56028623,0.0002,2]
[341240083,1730712752331,2787.38868352,0.0004395,30]
[341240088,1730713011873,157.66,0.00015342,2]
[341240554,1730713832343,-156.32,0.00015342,2]
[341240555,1730713832352,-300.0,0.00019725,2]
[341240556,1730713832362,-351.18,0.0002,2]
[341240609,1730713840195,-9096.64373114,0.0002,2]
[341240610,1730713840206,-1523.73463796,0.0002,2]
[341240611,1730713840216,-7423.48415677,0.0002,2]
[341240612,1730713840227,-199.19104268,0.0002,2]
[341240613,1730713840236,-1056.27016619,0.00021,7]
[341240614,1730713840246,-250.0,0.00021,2]
[341240615,1730713840256,-6635.00916826,0.00021011,10]
[341240616,1730713840265,-386.77,0.00021484,2]
[341240617,1730713840274,-416.54348749,0.00021484,2]
[341240618,1730713840286,-2068.66651251,0.00021484,2]
[341240619,1730713840295,-662.77,0.00021484,2]
[341240620,1730713840304,-420.0,0.00021484,2]
[341240621,1730713840313,-176.83,0.00021918,2]
[341240622,1730713840322,-3379.59,0.00021918,2]
[341240623,1730713840334,-1220.16,0.00021918,2]
[341240624,1730713840345,-1149.53214901,0.00021918,2]
[341240625,1730713840358,-2473.12785099,0.00021918,2]
[341240626,1730713840367,-6470.7123839,0.00022,2]
[341240627,1730713840387,-305.87,0.00022,2]
[341240628,1730713840483,-882.41653818,0.00022,2]
[341240632,1730713846520,-404.48230813,0.00022,2]
[341240649,1730714165827,292.0,0.000251,60]
[341240664,1730714787260,156.52,0.00015342,2]
[341240769,1730714972101,-150.0,0.00018123,2]
[341240770,1730714972121,-250.0,0.00021,2]
[341240771,1730714972141,-2533.761222,0.0002178,2]
[341240785,1730715032370,-287.0,0.00019725,2]
[341240787,1730715032380,-12856.80548694,0.0002178,2]
[341240794,1730715032633,-901.14437944,0.0002178,2]
[341240795,1730715032644,-6232.5472284,0.0002178,2]
[341240796,1730715032667,-1166.87796557,0.0002178,2]
[341241021,1730715038323,-6616.26879955,0.0002178,2]
[341241024,1730715038345,-2658.39,0.0002178,2]
[341241026,1730715038357,-334.51488948,0.0002178,2]
[341241033,1730715038729,-3233.42274633,0.0002178,2]
[341241139,1730715040376,-2138.67603,0.0002178,2]
[341241140,1730715040401,-2141.22,0.0002178,2]
[341241141,1730715040502,-984.45341094,0.0002178,2]
[341241142,1730715040514,-8013.17010999,0.0002178,2]
[341241143,1730715040681,-10340.73852924,0.0002178,2]
[341241150,1730715043334,-695.13,0.0002178,2]
[341241151,1730715043513,-390.00338682,0.0002178,2]
[341241161,1730715046415,-5209.68277392,0.0002178,2]
[341241162,1730715046507,-831.50592235,0.0002178,2]
[341241163,1730715046820,-2684.5,0.0002178,2]
[341241261,1730715908271,39843.48,0.00016,2]
[341241263,1730715919444,150.0,0.000251,60]
[341241264,1730715930174,150.0,0.00023,30]
[341241267,1730715993120,-157.66,0.00015342,2]
[341241268,1730715993143,-227.23361709,0.00015999,2]
[341241269,1730715993165,-1059.82775886,0.00016,2]
[341241270,1730715998060,150.0,0.00015511,5]
[341241335,1730716231495,-874.23,0.0001599,3]
[341241336,1730716231507,-40051.15971515,0.00016,2]
[341241338,1730716231518,-4939.00000001,0.00016,2]
[341241342,1730716231578,-420.85374406,0.00016,2]
[341241343,1730716231590,-61794.84945474,0.00016,2]
[341241344,1730716231601,-123998.40000004,0.00016,2]
[341241345,1730716231669,-1971.88412231,0.00016,2]
[341241346,1730716231746,-5945.57433358,0.00016,2]
[341241347,1730716231822,-663.95658174,0.00016,2]
[341241348,1730716231912,-340.28165674,0.00016,2]
[341241350,1730716237582,-313.999999,0.00016,2]
[341241351,1730716237663,-12392.33090641,0.00016,2]
[341241352,1730716237674,-569.5689955,0.00016,2]
[341241355,1730716239604,-1729.68807,0.00016,2]
[341241356,1730716239687,-6895.52222391,0.00016,2]
[341241357,1730716239979,-2348.07316731,0.00016,2]
[341241358,1730716239990,-1101.01583542,0.00016,2]
[341241380,1730716242764,-160.52459727,0.00016,2]
[341241381,1730716242796,-3827.15732142,0.00016,2]
[341241383,1730716245693,-461.06491921,0.00016,2]
[341241393,1730716932718,-156.32,0.00015342,2]
[341241394,1730716932743,-160.23812682,0.0001599,2]
[341241395,1730716932768,-7683.44187318,0.00015999,7]
[341241397,1730716984971,-4476.54775476,0.00015999,7]
[341241398,1730716984995,-302.32640067,0.00015999,2]
[341241399,1730716985019,-171.0,0.00015999,2]
[341241400,1730716985044,-35050.12584457,0.00016,2]
[341241421,1730717191868,-157.99,0.00015342,2]
[341241422,1730717191890,-150.99586821,0.0001592,2]
[341241423,1730717191912,-501.0313804,0.00015973,2]
[341241424,1730717191935,-355.5252103,0.00015973,2]
[341241425,1730717191959,-188.36022971,0.00016,2]
[341241426,1730717191984,-744735.94610912,0.00016,2]
[341241434,1730717335731,-27214.25203113,0.0001584,2]
[341241435,1730717335761,-150.60052918,0.00015973,2]
[341241436,1730717335983,-13435.96908085,0.00015995,2]
[341241437,1730717336013,-613301.88660305,0.00016,2]
[341241444,1730717431674,-282.21991292,0.00016,2]
[341241445,1730717431684,-185.69583597,0.0001645,2]
[341241446,1730717431694,-500.0,0.00016587,2]
[341241447,1730717431703,-150.0,0.00017257,2]
[341241448,1730717431712,-1000.0,0.00017957,2]
[341241449,1730717431723,-299.99,0.00017957,4]
[341241450,1730717431732,-13435.96908084,0.00019009,2]
[341241451,1730717431741,-1177.17,0.00019275,2]
[341241452,1730717431750,-5878.0,0.00019858,2]
[341241453,1730717431936,-181.9,0.00020034,2]
[341241454,1730717431946,-1345.90609937,0.00020461,2]
[341241455,1730717431956,-2948.78,0.00020985,2]
[341241456,1730717431966,-250.0,0.00021,2]
[341241457,1730717431975,-1707.85,0.00021056,2]
[341241458,1730717431985,-195.56,0.00021072,2]
[341241459,1730717431994,-1607.21321362,0.00021098,2]
[341241460,1730717432005,-413.094,0.00021098,2]
[341241461,1730717432047,-552.68386261,0.00021098,2]
[341241462,1730717432058,-900.0,0.00021098,2]
[341241463,1730717432073,-267.07892377,0.00021098,2]
[341241464,1730717432082,-475.38,0.00021117,2]
[341241465,1730717432092,-2796.11656311,0.00021322,2]
[341241506,1730717437910,-152.66343689,0.00021322,2]
[341241507,1730717437919,-311.35256311,0.00021344,2]
[341241508,1730717437968,-688.64743689,0.00021344,2]
[341241509,1730717437978,-250.0,0.00021376,2]
[341241510,1730717437987,-1170.32,0.00021401,2]
[341241511,1730717437997,-430.71,0.00021406,2]
[341241512,1730717438006,-1619.48567165,0.00021426,2]
[341241513,1730717438018,-2640.55432835,0.00021426,2]
[341241514,1730717438027,-1589.97,0.00021438,2]
[341241515,1730717438037,-1727.61,0.00021462,2]
[341241516,1730717438047,-1177.17,0.00021539,2]
[341241517,1730717438056,-500.0,0.00021576,2]
[341241518,1730717438066,-150.0,0.00021576,2]
[341241519,1730717438075,-524.75,0.000216,2]
[341241520,1730717438085,-4983.43,0.00021619,2]
[341241521,1730717438094,-160.99,0.00021629,2]
[341241522,1730717438104,-160.99,0.00021653,2]
[341241523,1730717438113,-2948.78,0.00021659,2]
[341241524,1730717438123,-160.99,0.00021677,2]
[341241525,1730717438132,-160.15,0.00021679,2]
[341241526,1730717438142,-23900.0,0.0002169,2]
[341241527,1730717438151,-160.99,0.00021701,2]
[341241528,1730717438161,-160.99,0.00021725,2]
[341241529,1730717438171,-667.8,0.00021737,2]
[341241530,1730717438180,-160.99,0.00021749,2]
[341241531,1730717438192,-160.99,0.00021773,2]
[341241532,1730717438201,-160.99,0.00021797,2]
[341241533,1730717438211,-160.99,0.00021821,2]
[341241534,1730717438221,-160.99,0.00021845,2]
[341241535,1730717438231,-315.8842208,0.000219,2]
[341241536,1730717438244,-1319.44064349,0.00021991,2]
[341241537,1730717438281,-580.5753858,0.00021991,2]
[341241542,1730717439760,-1449.14479351,0.00021991,2]
[341241543,1730717439770,-442.79658649,0.00021991,2]
[341241544,1730717439781,-320.47625362,0.00021991,2]
[341241545,1730717439800,-271.12880529,0.00021991,2]
[341241546,1730717439809,-101.24119471,0.00021996,2]
[341241547,1730717439820,-544.94947294,0.00021996,2]
[341241548,1730717439901,-1245.24823188,0.00021996,2]
[341241549,1730717439940,-1023.25,0.00021996,2]
[341241550,1730717440064,-34.09110047,0.00021996,2]
[341241551,1730717440074,-207.52521992,0.00021999,2]
[341241552,1730717440083,-3442.44765021,0.00022,2]
[341241553,1730717440095,-867.74640596,0.00022,2]
[341241554,1730717440107,-807.12353403,0.00022,2]
[341241559,1730717444420,-156.04,0.00016712,2]
[341241560,1730717444430,-199.658669,0.00021991,2]
[341241561,1730717444441,-369.339675,0.00022,2]
[341241562,1730717444542,-561.1656749,0.00022,2]
[341241565,1730717445954,-2696.2,0.00022,2]
[341241575,1730718117966,204.0,0.00025322,30]
[341241627,1730718455097,-2312.61131648,0.00043998,30]
[341241628,1730718455135,-5100.0,0.00043998,33]
[341241629,1730718455176,-3000.0,0.00043998,120]
[341241630,1730718455210,-796.0,0.00043998,30]
[341241631,1730718455245,-104070.03172882,0.00043998,120]
[341241632,1730718455282,-1000.0,0.00043998,120]
[341241633,1730718455318,-566.75078781,0.00043998,120]
[341241634,1730718455355,-421.61911117,0.00043998,30]
[341241635,1730718455396,-50000.0,0.00043998,30]
[341241636,1730718455434,-170.0,0.00043998,120]
[341241637,1730718455471,-1091.35997838,0.00043998,30]
[341241638,1730718455506,-178.39564096,0.00043998,60]
[341241639,1730718455541,-487.16800262,0.00043998,30]
[341241640,1730718455577,-196.0,0.00043998,30]
[341241641,1730718455616,-1023.61124082,0.00043998,30]
[341241642,1730718455651,-633.519,0.00043998,30]
[341241643,1730718455687,-1375.87101189,0.00043998,60]
[341241644,1730718455722,-232.15616917,0.00043998,120]
[341241645,1730718455756,-1000.0,0.00043998,120]
[341241646,1730718455792,-201.1,0.00043998,30]
[341241647,1730718455826,-1188.0,0.00043998,120]
[341241648,1730718456030,-211.0,0.00043998,30]
[341241649,1730718456069,-50000.0,0.00043998,31]
[341241650,1730718456110,-50000.0,0.00043998,32]
[341241651,1730718456149,-50000.0,0.00043998,33]
[341241652,1730718456187,-50000.0,0.00043998,34]
[341241653,1730718456223,-738.0,0.00043998,120]
[341241736,1730718552133,-156.52,0.00015342,2]
[341241737,1730718552161,-2777.24181,0.0002,5]
[341242044,1730718632069,-500.0,0.0002,5]
[341242046,1730718637974,-437.93533386,0.0002,5]
[341242060,1730718640136,-406.93850883,0.0002,5]
[341242074,1730718646047,-150.0,0.00018123,2]
[341242075,1730718646057,-109.76235792,0.0002,5]
[341242076,1730718646067,-250.0,0.00021,2]
[341242077,1730718646076,-708.36745257,0.00021999,2]
[341242078,1730718646086,-19446.75624954,0.00022,2]
[341242079,1730718646096,-300.0,0.00022,2]
[341242080,1730718646106,-1000.0,0.00022,2]
[341242081,1730718646116,-1000.0,0.00022,2]
[341242082,1730718646125,-1000.0,0.00022,2]
[341242083,1730718646135,-1000.0,0.00022,2]
[341242084,1730718646144,-1000.0,0.00022,2]
[341242085,1730718646154,-1000.0,0.00022,2]
[341242086,1730718646163,-1000.0,0.00022,2]
[341242087,1730718646173,-1000.0,0.00022,2]
[341242088,1730718646182,-1000.0,0.00022,2]
[341242089,1730718646191,-1000.0,0.00022,2]
[341242090,1730718646201,-1000.0,0.00022,2]
[341242091,1730718646211,-1000.0,0.00022,2]
[341242092,1730718646221,-1000.0,0.00022,2]
[341242093,1730718646231,-1000.0,0.00022,2]
[341242094,1730718646241,-1000.0,0.00022,2]
[341242095,1730718646251,-1000.0,0.00022,2]
[341242096,1730718646261,-1000.0,0.00022,2]
[341242097,1730718646271,-1000.0,0.00022,2]
[341242098,1730718646280,-1000.0,0.00022,2]
[341242099,1730718646290,-1000.0,0.00022,2]
[341242100,1730718646300,-1000.0,0.00022,2]
[341242101,1730718646310,-1000.0,0.00022,2]
[341242102,1730718646319,-1000.0,0.00022,2]
[341242103,1730718646329,-1000.0,0.00022,2]
[341242104,1730718646339,-1000.0,0.00022,2]
[341242105,1730718646348,-1000.0,0.00022,2]
[341242106,1730718646358,-1000.0,0.00022,2]
[341242107,1730718646367,-1000.0,0.00022,2]
[341242108,1730718646376,-1000.0,0.00022,2]
[341242109,1730718646386,-1000.0,0.00022,2]
[341242110,1730718646395,-1000.0,0.00022,2]
[341242111,1730718646404,-1000.0,0.00022,2]
[341242112,1730718646413,-1000.0,0.00022,2]
[341242114,1730718646423,-1000.0,0.00022,2]
[341242116,1730718646432,-532.25802406,0.00022,2]
[341242117,1730718646441,-501.0313804,0.00022,2]
[341242118,1730718646451,-500.0,0.00022,2]
[341242119,1730718646462,-355.5252103,0.00022,2]
[341242120,1730718646471,-948.6181268,0.00022338,2]
[341242121,1730718646480,-1636.9406038,0.00022353,2]
[341242122,1730718646489,-300.0,0.00023,2]
[341242123,1730718646498,-1059.45,0.00023257,2]
[341242124,1730718646508,-182.05,0.00023326,2]
[341242125,1730718646517,-199.01916,0.0002337,2]
[341242126,1730718646526,-1505.53,0.0002405,2]
[341242127,1730718646535,-1505.53,0.00024436,2]
[341242128,1730718646544,-583.75,0.00024528,2]
[341242129,1730718646553,-182.05,0.00024554,2]
[341242130,1730718646563,-215.35,0.00024605,2]
[341242131,1730718646572,-4371.22448481,0.00024628,2]
[341242139,1730719531208,40000.0,0.000101,2]
[341242140,1730719531240,31260.79193362,0.000101,2]
[341242142,1730719558290,5785.75990085,6.94e-05,2]
[341242143,1730719565614,161.69664763,9e-05,2]
[341242144,1730719570770,600.25131024,0.0001,2]
[341242165,1730719679711,4206.58980917,0.00013,2]
[341242166,1730719683520,18229.52858644,0.0001,2]
[341242167,1730719684818,42981.73569524,0.000145,3]
[341242168,1730719686618,680147.6178726,0.00015,2]
[341242169,1730719686645,69100.0,0.00015,2]
[341242170,1730719686670,1567539.39042647,0.00015,2]
[341242171,1730719686691,497554.37769807,0.00015,2]
[341242172,1730719706762,150.99586821,0.00014925,2]
[341242174,1730719729940,150.44627616,0.00013,2]
[341242175,1730719730736,254.94181388,0.000107,2]
[341242237,1730719832084,-158.19,0.00015342,2]
[341242239,1730719832093,-113.8178,0.00015342,2]
[341242245,1730719832206,-42.5022,0.00015342,2]
[341242246,1730719832215,-2386.83915222,0.0001537,2]
[341242247,1730719832226,-36823.16084778,0.0001537,2]
[341242248,1730719832235,-300.0,0.00015972,2]
[341242249,1730719832245,-21928.12373481,0.00015973,2]
[341242250,1730719832254,-500.0,0.00015973,2]
[341242251,1730719832263,-367.14512242,0.00015999,2]
[341242252,1730719832272,-355.21273935,0.00015999,2]
[341242253,1730719832281,-108852.25393594,0.00016,2]
[341242254,1730719832337,-312.0,0.00016,2]
[341242262,1730719838270,-157.99,0.00015342,2]
[341242263,1730719838280,-38535.49570921,0.00016,2]
[341242264,1730719838291,-389009.61262135,0.00016,2]
[341242265,1730719838300,-160.23812682,0.0001698,2]
[341242266,1730719838310,-12214.53904988,0.0001699,2]
[341242267,1730719838319,-510.0,0.0001709,2]
[341242268,1730719838328,-9999.99,0.0001726,2]
[341242269,1730719838339,-866.0,0.00018287,2]
[341242270,1730719838349,-150.99,0.00018319,2]
[341242271,1730719838360,-683.92449059,0.0001892,2]
[341242272,1730719838370,-1529.8,0.0001892,2]
[341242273,1730719838379,-5347.80761729,0.00019883,2]
[341242277,1730719840080,-8184.65536114,0.00015872,2]
[341242278,1730719840090,-6866.73143252,0.00019883,2]
[341242279,1730719840099,-1013.0,0.0002,6]
[341242280,1730719840109,-187.99,0.00021918,2]
[341242281,1730719840119,-1294.14,0.00022504,2]
[341242282,1730719840128,-93.2275717,0.00022628,2]
[341242283,1730719840237,-78.7324283,0.00022628,2]
[341242284,1730719840246,-2469.25597396,0.00022776,2]
[341242288,1730719840277,-1940.79,0.00022776,2]
[341242291,1730719840288,-5293.6059038,0.00022776,2]
[341242295,1730719840317,-1359.23949991,0.00022776,2]
[341242300,1730719840363,-1151.64767214,0.00022776,2]
[341242303,1730719840380,-1149.59,0.00022955,2]
[341242306,1730719840397,-2653.06232778,0.00023159,2]
[341242358,1730719843137,-103.98357345,0.00023159,2]
[341242359,1730719843264,-4077.49325047,0.00023159,2]
[341242360,1730719843279,-3979.30619989,0.00023159,2]
[341242361,1730719843305,-279.92356222,0.00023159,2]
[341242362,1730719843320,-500.0,0.00023159,2]
[341242363,1730719843400,-480.45108619,0.00023159,2]
[341242364,1730719843413,-235.94891381,0.00023324,2]
[341242365,1730719843429,-480.7630145,0.00023324,2]
[341242366,1730719846571,-432.87807169,0.00023324,2]
[341242367,1730719846581,-300.0,0.00023408,2]
[341242368,1730719846591,-1149.59,0.00023692,2]
[341242369,1730719846600,-1022.42,0.00023753,2]
[341242370,1730719846611,-250.0,0.00023819,2]
[341242371,1730719846622,-250.0,0.00023845,2]
[341242372,1730719846632,-72.06078817,0.00023858,2]
[341242378,1730720242439,1068.24605586,0.00017161,15]
[341242389,1730720962104,-156.52,0.00015342,2]
[341242390,1730720962124,-150.0,0.00016095,2]
[341242391,1730720962144,-154.75,0.00016712,2]
[341242392,1730720962164,-250.0,0.00021,2]
[341242394,1730720962183,-177.11,0.00021918,2]
[341242395,1730720962202,-300.0,0.00023,2]
[341242396,1730720962221,-203.0,0.00023,2]
[341242397,1730720962244,-1229.43,0.00023438,2]
[341242398,1730720962268,-312.955044,0.0002362,2]
[341242399,1730721032601,-150.0,0.00018119,2]
[341242400,1730721032611,-300.0,0.00019725,2]
[341242401,1730721032620,-420.0,0.00021484,2]
[341242402,1730721032630,-587.0,0.00023401,2]
[341242403,1730721032640,-449.44564164,0.0002362,2]
[341242404,1730721032649,-35238.54030541,0.000237,30]
[341242478,1730721038398,-1736.66983496,0.000237,30]
[341242479,1730721038410,-6313.59,0.000237,30]
[341242481,1730721038421,-702.05,0.000237,30]
[341242491,1730721040667,-1697.88468909,0.000237,30]
[341242492,1730721040688,-435.24117541,0.000237,30]
[341242493,1730721040705,-668.2515804,0.000237,30]
[341242494,1730721040761,-701.030253,0.000237,30]
[341242530,1730721043699,-1161.74216173,0.000237,30]
[341242531,1730721043712,-171.96,0.0002376,2]
[341242532,1730721043722,-1012.0,0.000238,2]
[341242533,1730721043732,-88.08921183,0.00023858,2]
[341242534,1730721043743,-163.85,0.00024533,2]
[341242535,1730721043754,-566.69396205,0.00024627,2]
[341242536,1730721043763,-204.82143431,0.00024628,2]
[341242537,1730721043773,-200.0,0.00024628,2]
[341242538,1730721043782,-718.49,0.00024659,2]
[341242539,1730721043793,-16047.860015,0.00024728,2]
[341242540,1730721043889,-1474.40663421,0.00024728,2]
[341242542,1730721043900,-1068.9,0.00024728,2]
[341242543,1730721043912,-4917.47860713,0.00024728,2]
[341242544,1730721043921,-202.48,0.00024772,2]
[341242545,1730721043931,-350.0,0.00025,2]
[341242546,1730721043941,-1000.0,0.00025005,2]
[341242547,1730721043950,-473.176978,0.00025018,2]
[341242548,1730721043962,-1182.41791029,0.00025018,2]
[341242553,1730721046248,-394.53997654,0.00025018,2]
[341242563,1730721453184,-1358.0,0.00043928,120]
[341242564,1730721453208,-1023.61124082,0.00043928,30]
[341242565,1730721453232,-487.16800262,0.00043928,30]
[341242566,1730721453255,-633.519,0.00043928,30]
[341242567,1730721453279,-1554.26665285,0.00043928,60]
[341242568,1730721453302,-232.15616917,0.00043928,120]
[341242569,1730721453327,-1091.35997838,0.00043928,30]
[341242570,1730721453352,-421.61911117,0.00043928,30]
[341242571,1730721453375,-201.1,0.00043928,30]
[341242572,1730721453400,-1498.793978,0.00043928,120]
[341242573,1730721453424,-796.0,0.00043928,30]
[341242574,1730721453448,-196.0,0.00043928,30]
[341242575,1730721453477,-196.0,0.00043928,30]
[341242576,1730721453500,-3000.0,0.00043928,120]
[341242577,1730721453527,-809.73607009,0.00043928,30]
[341242578,1730721453550,-201.1,0.00043928,30]
[341242579,1730721453574,-631.0,0.00043928,30]
[341242580,1730721453598,-787.42534344,0.00043928,90]
[341242581,1730721453622,-1999.999997,0.00043928,120]
[341242582,1730721453647,-380.99482459,0.00043928,50]
[341242583,1730721453671,-209.07609344,0.00043928,120]
[341242584,1730721453694,-1417.54797969,0.00043928,30]
[341242585,1730721453718,-2029.36381164,0.00043928,30]
[341242586,1730721453742,-1694.83038896,0.00043928,30]
[341242587,1730721453765,-253.2535272,0.00043928,120]
[341242588,1730721453790,-195.32136795,0.00043928,120]
[341242589,1730721453813,-288.42589254,0.00043928,60]
[341242590,1730721453837,-404.06443327,0.00043928,120]
[341242591,1730721453862,-1020.98998865,0.00043928,120]
[341242592,1730721453887,-362.20733454,0.00043928,120]
[341242593,1730721453914,-294.4249952,0.00043928,30]
[341242594,1730721454119,-927.019098,0.00043928,120]
[341242595,1730721454149,-363.18389108,0.00043928,31]
[341242596,1730721454176,-186.09899891,0.00043928,30]
[341242597,1730721454208,-2030.21629008,0.00043928,120]
[341242598,1730721454234,-738.46413056,0.00043928,120]
[341242599,1730721454260,-150.05596969,0.00043928,120]
[341242600,1730721454285,-411.60496997,0.00043928,30]
[341242601,1730721454309,-242.38835601,0.00043928,30]
[341242602,1730721454333,-1289.59381454,0.00043928,30]
[341242603,1730721454357,-1156.592589,0.00043928,120]
[341242604,1730721454381,-487.59766239,0.00043928,120]
[341242605,1730721454407,-595.18344836,0.00043928,120]
[341242606,1730721454432,-355.66936326,0.00043928,120]
[341242607,1730721454456,-210.22453731,0.00043928,120]
[341242608,1730721454481,-334.31355111,0.00043928,30]
[341242609,1730721454505,-210.73660187,0.00043928,30]
[341242610,1730721454530,-409.76736758,0.00043928,30]
[341242611,1730721454555,-281.97216761,0.00043928,120]
[341242612,1730721454584,-269.59661239,0.00043928,30]
[341242613,1730721454610,-2247.6436581,0.00043928,120]
[341242614,1730721454635,-228.77629649,0.00043928,120]
[341242615,1730721454661,-2009.18416713,0.00043928,30]
[341242616,1730721454686,-739.72532263,0.00043928,30]
[341242617,1730721454711,-411.17639644,0.00043928,30]
[341242618,1730721454737,-151.3796162,0.00043928,60]
[341242619,1730721454763,-379.30716933,0.00043928,120]
[341242620,1730721454788,-213.08943822,0.00043928,45]
[341242621,1730721454813,-246.84763556,0.00043928,120]
[341242622,1730721454838,-682.50227709,0.00043928,30]
[341242623,1730721454862,-273.2256903,0.00043928,120]
[341242624,1730721454887,-1005.0077153,0.00043928,30]
[341242625,1730721454912,-224.08458578,0.00043928,120]
[341242626,1730721454935,-1569.83765265,0.00043928,120]
[341242627,1730721454960,-1171.31930609,0.00043928,120]
[341242628,1730721454985,-1748.24588006,0.00043928,30]
[341242629,1730721455009,-242.93174844,0.00043928,30]
[341242630,1730721455033,-2352.14587125,0.00043928,120]
[341242631,1730721455059,-417.06410115,0.00043928,120]
[341242632,1730721455084,-1016.2747511,0.00043928,120]
[341242633,1730721455108,-209.87196689,0.00043928,120]
[341242634,1730721455132,-506.3733158,0.00043928,120]
[341242635,1730721455156,-220.86370898,0.00043928,30]
[341242636,1730721455179,-1102.56128354,0.00043928,30]
[341242637,1730721455201,-490.08981311,0.00043928,120]
[341242638,1730721455225,-1593.65653104,0.00043928,30]
[341242639,1730721455249,-1000.0,0.00043928,31]
[341242640,1730721455276,-2410.73164097,0.00043928,120]
[341242641,1730721455303,-50000.0,0.00043928,30]
[341242642,1730721455331,-50000.0,0.00043928,31]
[341242643,1730721455359,-50000.0,0.00043928,32]
[341242644,1730721455386,-50000.0,0.00043928,33]
[341242645,1730721455413,-50000.0,0.00043928,34]
[341242646,1730721465175,422.0,0.00043928,30]
[341242647,1730721469858,196.0,0.00043928,30]
[341242648,1730721482777,290.34550325,0.00043928,30]
[341242655,1730721504997,219.98560964,0.00043928,30]
[341242662,1730721539225,2097.4449785,0.00043928,60]
[341242663,1730721541225,-172.54,0.00015342,2]
[341242664,1730721541248,-150.0,0.00016095,2]
[341242665,1730721541271,-154.75,0.00016712,2]
[341242666,1730721560916,1119.0,0.00043928,120]
[341242667,1730721567541,150.0,0.000161,2]
[341242668,1730721572085,422.0,0.00043944,30]
[341242669,1730721584379,155.688,0.0002211,30]
[341242670,1730721585458,156.067,0.0002387,60]
[341242671,1730721602206,1091.35997838,0.00043944,30]
[341242673,1730721607655,156.61,0.00015342,2]
[341242674,1730721609052,1358.0,0.00043944,120]
[341242675,1730721610492,1784.11376085,0.00043944,30]
[341242676,1730721610710,1023.61124082,0.00043944,30]
[341242677,1730721621076,232.15616917,0.00043944,120]
[341242678,1730721626588,633.519,0.00043944,30]
[341242679,1730721642973,290.34550325,0.00043944,30]
[341242680,1730721647985,1498.793978,0.00043944,120]
[341242681,1730721663459,1000.0,0.00043944,30]
[341242682,1730721665302,1000.0,0.00043944,30]
[341242683,1730721666255,1000.0,0.00043944,30]
[341242684,1730721667246,1000.0,0.00043944,30]
[341242685,1730721668380,1000.0,0.00043944,30]
[341242686,1730721672743,700.12,0.00043944,30]
[341242687,1730721694451,421.61911117,0.00043944,30]
[341242688,1730721716043,150.0,0.00043944,30]
[341242689,1730721739965,224874.0,0.00043941,30]
[341242690,1730721763558,201.1,0.00043941,30]
[341242691,1730721764516,201.1,0.00043941,30]
[341242692,1730721772035,64416.63999168,0.00043941,120]
[341242694,1730721837962,3651.71163135,0.00043941,60]
[341242695,1730721855207,3000.0,0.00043941,120]
[341242696,1730721864271,796.0,0.00043941,30]
[341242697,1730721864986,631.0,0.00043941,30]